fUST/lending_fUST_20250523
["ID","MTS","AMOUNT","RATE_DAILY","PERIOD"]
[362080032,1747979457114,-677.90222272,0.00022739,2]
[362080033,1747979457125,-486.81,0.00022739,2]
[362080034,1747979457135,-1176.21662814,0.00022739,2]
[362080035,1747979457144,-537.56939497,0.00022739,2]
[362080036,1747979457154,-155.0,0.0002274,2]
[362080037,1747979457164,-2426.57853828,0.0002277,2]
[362080038,1747979457174,-1005.13,0.000228,5]
[362080039,1747979457183,-151.0,0.00022808,7]
[362080040,1747979457192,-158.95487,0.00022808,2]
[362080041,1747979457201,-158.95487,0.00022808,2]
[362080042,1747979457210,-2816.668241,0.00022808,7]
[362080043,1747979457219,-2816.668241,0.00022808,7]
[362080044,1747979457228,-153.0,0.00022822,2]
[362080045,1747979457238,-153.0,0.00022822,2]
[362080046,1747979457247,-153.0,0.00022822,2]
[362080047,1747979457256,-153.0,0.00022822,2]
[362080048,1747979457266,-960.0,0.00022931,2]
[362080049,1747979457275,-2233.0,0.00022931,2]
[362080050,1747979457284,-707.0,0.00022931,2]
[362080051,1747979457293,-273.054505,0.00022941,2]
[362080052,1747979457303,-2503.47322088,0.00022963,2]
[362080053,1747979457312,-5522.18001289,0.00022969,8]
[362080054,1747979457321,-200.0,0.0002299,6]
[362080055,1747979457331,-2528.02594488,0.00022996,2]
[362080056,1747979457340,-500.0,0.00023,2]
[362080057,1747979457350,-17999.999999,0.00023,2]
[362080058,1747979457359,-5000.0,0.00023,15]
[362080059,1747979457368,-5000.0,0.00023,15]
[362080060,1747979457377,-2364.22841,0.00023,15]
[362080061,1747979457387,-4023.8098045,0.00023,14]
[362080062,1747979457396,-5000.0,0.00023,15]
[362080063,1747979457406,-5000.0,0.00023,5]
[362080064,1747979457415,-3000.0,0.00023,2]
[362080065,1747979457425,-3000.0,0.00023,2]
[362080066,1747979457434,-505.23806914,0.00023,30]
[362080067,1747979457443,-519.43701041,0.00023,30]
[362080068,1747979457455,-500.0,0.00023,30]
[362080069,1747979457464,-500.0,0.00023,30]
[362080070,1747979457474,-3407.4488314,0.00023,120]
[362080071,1747979457483,-546.33,0.00023,14]
[362080072,1747979457493,-1000.0,0.00023,23]
[362080073,1747979457502,-151.0,0.00023,7]
[362080074,1747979457512,-151.0,0.00023,7]
[362080075,1747979457522,-151.0,0.00023,7]
[362080076,1747979457532,-400.81149591,0.00023,2]
[362080077,1747979457541,-169.148613,0.00023,7]
[362080078,1747979457551,-169.148613,0.00023,7]
[362080079,1747979457560,-229.925772,0.00023,7]
[362080080,1747979457570,-229.925772,0.00023,7]
[362080081,1747979457579,-245.906081,0.00023,7]
[362080082,1747979457589,-197.952902,0.00023,7]
[362080083,1747979457599,-151.0,0.00023,7]
[362080084,1747979457609,-197.952902,0.00023,7]
[362080085,1747979457618,-160.0,0.00023,3]
[362080086,1747979457627,-151.0,0.00023,7]
[362080087,1747979457637,-180.388866,0.00023,7]
[362080088,1747979457764,-154.088098,0.00023,7]
[362080089,1747979457775,-154.088098,0.00023,7]
[362080090,1747979457785,-516.689394,0.00023,7]
[362080091,1747979457794,-151.0,0.00023,7]
[362080092,1747979457803,-516.689394,0.00023,7]
[362080093,1747979457812,-151.866835,0.00023,7]
[362080094,1747979457822,-160.0,0.00023,3]
[362080095,1747979457831,-238.878266,0.00023,7]
[362080096,1747979457840,-238.878266,0.00023,7]
[362080097,1747979457849,-151.0,0.00023,7]
[362080098,1747979457859,-160.0,0.00023,3]
[362080099,1747979457868,-151.0,0.00023,7]
[362080100,1747979457878,-198.759847,0.00023,7]
[362080101,1747979457887,-160.0,0.00023,3]
[362080102,1747979457897,-151.0,0.00023,7]
[362080103,1747979457906,-422.85710789,0.00023,3]
[362080104,1747979457916,-151.0,0.00023,7]
[362080105,1747979457925,-275.831647,0.00023,7]
[362080106,1747979457935,-151.0,0.00023,7]
[362080107,1747979457945,-171.0,0.00023,7]
[362080108,1747979457954,-996.196674,0.00023,2]
[362080109,1747979457964,-996.196674,0.00023,2]
[362080110,1747979457974,-151.0,0.00023,7]
[362080111,1747979457984,-298.554493,0.00023,7]
[362080112,1747979457993,-298.554493,0.00023,7]
[362080113,1747979458002,-894.64583333,0.00023,7]
[362080114,1747979458011,-160.0,0.00023,3]
[362080115,1747979458023,-160.0,0.00023,3]
[362080116,1747979458033,-191.0,0.00023014,7]
[362080117,1747979458042,-176.782383,0.0002303,3]
[362080118,1747979458051,-2500.0,0.00023085,2]
[362080119,1747979458061,-363.7241891,0.00023096,2]
[362080120,1747979458071,-260.77834958,0.00023121,2]
[362080121,1747979458080,-223.0315306,0.00023121,2]
[362080122,1747979458089,-500.0,0.00023167,2]
[362080123,1747979458099,-2528.02594485,0.00023208,2]
[362080124,1747979458109,-5522.18001289,0.00023245,8]
[362080125,1747979458119,-9757.72859215,0.00023281,2]
[362080126,1747979458128,-5000.0,0.00023281,2]
[362080127,1747979458138,-4939.02,0.00023287,2]
[362080128,1747979458147,-155.0,0.00023288,2]
[362080129,1747979458156,-5000.0,0.000233,30]
[362080130,1747979458165,-1600.0,0.00023356,2]
[362080131,1747979458175,-153.0,0.0002337,2]
[362080132,1747979458185,-153.0,0.0002337,2]
[362080133,1747979458195,-153.0,0.0002337,2]
[362080134,1747979458204,-153.0,0.0002337,2]
[362080135,1747979458214,-153.0,0.0002337,2]
[362080136,1747979458223,-153.0,0.0002337,2]
[362080137,1747979458233,-153.0,0.0002337,2]
[362080138,1747979458242,-153.0,0.0002337,2]
[362080139,1747979458251,-153.0,0.0002337,2]
[362080140,1747979458260,-153.0,0.0002337,2]
[362080141,1747979458269,-153.0,0.0002337,2]
[362080142,1747979458279,-153.0,0.0002337,2]
[362080143,1747979458288,-153.0,0.0002337,2]
[362080144,1747979458298,-2528.02594485,0.00023419,2]
[362080145,1747979458308,-546.33,0.000235,14]
[362080146,1747979458317,-5522.18001289,0.00023521,9]
[362080147,1747979458327,-169.148613,0.00023521,7]
[362080148,1747979458337,-169.148611,0.00023521,7]
[362080149,1747979458347,-151.0,0.00023521,7]
[362080150,1747979458356,-325.83964,0.0002363,2]
[362080151,1747979458366,-2528.02594485,0.00023631,2]
[362080152,1747979458375,-3000.0,0.00023633,2]
[362080153,1747979458384,-178.87489615,0.00023677,2]
[362080154,1747979458394,-797.123,0.00023678,2]
[362080155,1747979458404,-2200.0,0.00023678,2]
[362080156,1747979458414,-245.906081,0.00023693,7]
[362080157,1747979458423,-5000.0,0.00023743,2]
[362080158,1747979458433,-5000.0,0.00023743,2]
[362080159,1747979458442,-5000.0,0.00023743,2]
[362080160,1747979458452,-5000.0,0.00023743,2]
[362080161,1747979458461,-5000.0,0.00023743,2]
[362080162,1747979458471,-229.925772,0.00023743,7]
[362080163,1747979458480,-229.925764,0.00023743,7]
[362080164,1747979458490,-197.952902,0.00023743,7]
[362080165,1747979458500,-197.952892,0.00023743,7]
[362080166,1747979458509,-245.756976,0.00023743,7]
[362080167,1747979458518,-158.95487,0.00023743,2]
[362080168,1747979458528,-158.95487,0.00023743,2]
[362080169,1747979458537,-2816.668241,0.00023743,7]
[362080170,1747979458547,-2816.668241,0.00023743,7]
[362080171,1747979458557,-151.0,0.00023743,7]
[362080172,1747979458567,-152.05628,0.00023743,7]
[362080173,1747979458577,-151.619641,0.00023756,7]
[362080174,1747979458587,-181.134768,0.00023756,7]
[362080175,1747979458597,-767.77,0.00023784,3]
[362080176,1747979458608,-996.196674,0.00023796,2]
[362080177,1747979458618,-996.196674,0.00023796,2]
[362080178,1747979458628,-298.554493,0.00023796,7]
[362080179,1747979458637,-298.554493,0.00023796,7]
[362080180,1747979458648,-5522.18001289,0.00023797,9]
[362080181,1747979458658,-64031.511499,0.000238,2]
[362080182,1747979458668,-158.679514,0.000238,7]
[362080183,1747979458678,-151.0,0.000238,7]
[362080184,1747979458688,-154.088098,0.000238,7]
[362080185,1747979458697,-154.088098,0.000238,7]
[362080186,1747979458706,-151.0,0.000238,7]
[362080187,1747979458716,-516.689394,0.000238,7]
[362080188,1747979458725,-516.689394,0.000238,7]
[362080189,1747979458735,-238.878266,0.000238,7]
[362080190,1747979458745,-238.878266,0.000238,7]
[362080191,1747979458754,-151.0,0.000238,7]
[362080192,1747979458764,-157.320276,0.000238,7]
[362080193,1747979458775,-151.0,0.000238,7]
[362080194,1747979458784,-151.0,0.000238,7]
[362080195,1747979458794,-976.62781738,0.00023832,2]
[362080196,1747979458804,-2528.02594485,0.00023842,2]
[362080197,1747979458814,-767.77,0.00023884,4]
[362080198,1747979458824,-867.29523733,0.000239,7]
[362080199,1747979458834,-985.62886971,0.000239,2]
[362080200,1747979458844,-200.0,0.00023907,7]
[362080201,1747979458854,-201.71298226,0.00023907,7]
[362080202,1747979458863,-245.906079,0.0002395,7]
[362080203,1747979458873,-5000.0,0.0002395,2]
[362080204,1747979458883,-5000.0,0.0002395,2]
[362080205,1747979458894,-158.95487,0.00023972,2]
[362080206,1747979458903,-158.95487,0.00023972,2]
[362080207,1747979458912,-2816.668241,0.00023972,7]
[362080208,1747979458921,-2816.668241,0.00023972,7]
[362080209,1747979458931,-767.77,0.00023984,4]
[362080210,1747979458940,-500.0,0.00024,2]
[362080211,1747979458950,-1617.338512,0.00024,31]
[362080212,1747979458959,-6743.09955725,0.00024,2]
[362080213,1747979458969,-2000.0,0.00024,2]
[362080214,1747979458979,-50000.0,0.00024,2]
[362080215,1747979458988,-10074.68484596,0.00024,2]
[362080216,1747979458998,-500.0,0.00024,10]
[362080217,1747979459007,-500.0,0.00024,10]
[362080218,1747979459018,-500.0,0.00024,10]
[362080219,1747979459030,-500.0,0.00024,10]
[362080220,1747979459040,-502.41669824,0.00024,10]
[362080221,1747979459049,-487.8257266,0.00024,10]
[362080222,1747979459059,-419.8254275,0.00024,10]
[362080223,1747979459068,-500.0,0.00024,10]
[362080224,1747979459077,-500.0,0.00024,10]
[362080225,1747979459087,-419.8254275,0.00024,10]
[362080226,1747979459098,-160.349145,0.00024,10]
[362080227,1747979459107,-2000.0,0.00024,2]
[362080228,1747979459117,-1000.0,0.00024,24]
[362080229,1747979459127,-151.0,0.00024,7]
[362080230,1747979459137,-557.30571269,0.00024,30]
[362080231,1747979459146,-192.0,0.00024,120]
[362080232,1747979459156,-154.088098,0.00024,7]
[362080233,1747979459165,-154.088098,0.00024,7]
[362080234,1747979459175,-516.689394,0.00024,7]
[362080235,1747979459185,-151.0,0.00024,7]
[362080236,1747979459194,-516.689394,0.00024,7]
[362080237,1747979459203,-238.878266,0.00024,7]
[362080238,1747979459213,-238.878266,0.00024,7]
[362080239,1747979459223,-151.0,0.00024,7]
[362080240,1747979459232,-160.0,0.00024,7]
[362080241,1747979459242,-160.0,0.00024,10]
[362080242,1747979459252,-151.0,0.00024,7]
[362080243,1747979459262,-160.0,0.00024,7]
[362080244,1747979459271,-160.0,0.00024,10]
[362080245,1747979459281,-160.0,0.00024,7]
[362080246,1747979459291,-422.85710789,0.00024,7]
[362080247,1747979459301,-422.85710789,0.00024,10]
[362080248,1747979459310,-151.0,0.00024,7]
[362080249,1747979459320,-996.196674,0.00024,2]
[362080250,1747979459329,-996.196674,0.00024,2]
[362080251,1747979459339,-151.0,0.00024,7]
[362080252,1747979459349,-298.554493,0.00024,7]
[362080253,1747979459359,-298.554493,0.00024,7]
[362080254,1747979459369,-894.64583333,0.00024,10]
[362080255,1747979459378,-160.0,0.00024,7]
[362080256,1747979459388,-160.0,0.00024,10]
[362080257,1747979459398,-212.48480548,0.00024,10]
[362080258,1747979459409,-160.0,0.00024,7]
[362080259,1747979459419,-160.0,0.00024,10]
[362080260,1747979459429,-600.0,0.00024,2]
[362080261,1747979459439,-12647.66147447,0.00024,10]
[362080262,1747979459449,-2528.02594485,0.00024054,2]
[362080263,1747979459459,-491.1768342,0.00024055,2]
[362080264,1747979459469,-5522.18001289,0.00024072,10]
[362080265,1747979459479,-767.77,0.00024084,5]
[362080266,1747979459489,-546.33,0.000241,14]
[362080267,1747979459499,-5000.0,0.00024147,2]
[362080268,1747979459510,-5000.0,0.00024147,2]
[362080269,1747979459520,-5000.0,0.00024147,2]
[362080270,1747979459530,-5000.0,0.00024147,2]
[362080271,1747979459540,-5000.0,0.00024147,2]
[362080272,1747979459549,-197.0,0.00024164,7]
[362080273,1747979459559,-3500.0,0.00024181,2]
[362080274,1747979459569,-767.77,0.00024184,4]
[362080275,1747979459579,-8100.79207125,0.000242,10]
[362080276,1747979459588,-5000.0,0.000242,2]
[362080277,1747979459598,-5000.0,0.000242,2]
[362080278,1747979459607,-5000.0,0.000242,2]
[362080279,1747979459616,-5000.0,0.000242,2]
[362080280,1747979459625,-5000.0,0.000242,2]
[362080281,1747979459636,-5000.0,0.000242,2]
[362080282,1747979459646,-158.95487,0.000242,2]
[362080283,1747979459655,-158.95487,0.000242,2]
[362080284,1747979459665,-2816.668241,0.000242,7]
[362080285,1747979459674,-2816.668241,0.000242,7]
[362080286,1747979459683,-151.0,0.000242,7]
[362080287,1747979459694,-996.196674,0.000242,2]
[362080288,1747979459704,-996.196674,0.000242,2]
[362080289,1747979459714,-298.554493,0.000242,7]
[362080290,1747979459723,-298.554493,0.000242,7]
[362080291,1747979459733,-601.39499558,0.0002425,2]
[362080292,1747979459743,-2528.02594485,0.00024265,2]
[362080293,1747979459753,-767.77,0.00024284,2]
[362080294,1747979459762,-2000.95054793,0.00024324,4]
[362080295,1747979459772,-500.0,0.00024325,2]
[362080296,1747979459782,-5522.18001289,0.00024348,11]
[362080297,1747979459791,-767.77,0.00024384,3]
[362080298,1747979459801,-1600.0,0.00024452,2]
[362080299,1747979459811,-2528.02594485,0.00024477,2]
[362080300,1747979459820,-767.77,0.00024484,4]
[362080301,1747979459829,-466.107779,0.00024484,2]
[362080302,1747979459839,-231.28369723,0.0002449,2]
[362080303,1747979459849,-5000.0,0.00024533,2]
[362080304,1747979459859,-767.77,0.00024584,4]
[362080305,1747979459977,-546.31,0.000246,14]
[362080306,1747979459987,-200.0,0.000246,11]
[362080307,1747979459997,-5522.18001289,0.00024624,11]
[362080308,1747979460006,-1000.0,0.00024658,2]
[362080309,1747979460020,-380.0,0.00024658,2]
[362080310,1747979460034,-500.0,0.00024658,2]
[362080311,1747979460043,-394.81406267,0.00024658,2]
[362080312,1747979460054,-368.92478786,0.00024658,2]
[362080313,1747979460063,-262387.44142517,0.0002468,15]
[362080314,1747979460167,-7755.1,0.0002468,15]
[362080315,1747979460213,-151.0,0.00019726,2]
[362080316,1747979460223,-151.0,0.0002,2]
[362080317,1747979460234,-151.0,0.000206,2]
[362080318,1747979460244,-298.514428,0.0002114,2]
[362080319,1747979460253,-172.77317593,0.0002468,15]
[362080320,1747979460266,-819.64835284,0.0002468,15]
[362080321,1747979460278,-1487.69041136,0.0002468,15]
[362080322,1747979603857,2802.0,0.0002,120]
[362080323,1747979640124,5000.0,0.00015,2]
[362080324,1747979656281,4721.77010855,0.00015,2]
[362080325,1747979884199,-185.17740586,0.00015221,2]
[362080326,1747979890543,185.17740586,0.00015,2]
[362080341,1747980458260,357.51369,0.00013699,2]
[362080385,1747980638819,-15.39630886,0.00015221,2]
[362080387,1747980638829,-1004.60369114,0.00015428,2]
[362080393,1747980638874,-831.67968756,0.00015428,2]
[362080395,1747980638884,-1066.0603711,0.0001548,2]
[362080397,1747980638894,-3703.4389066,0.00015522,2]
[362080399,1747980638903,-1286.293216,0.000161,20]
[362080401,1747980638913,-583.704882,0.00016214,2]
[362080403,1747980638922,-241.0,0.00016436,2]
[362080405,1747980638932,-300.0,0.00016437,2]
[362080406,1747980638941,-197.0,0.00016437,2]
[362080408,1747980638951,-430.0,0.00016438,2]
[362080410,1747980638961,-430.0,0.00016438,2]
[362080412,1747980638971,-500.0,0.00016438,2]
[362080414,1747980638981,-430.0,0.00016438,2]
[362080415,1747980638990,-430.0,0.00016438,2]
[362080417,1747980639000,-439.64719023,0.00016438,2]
[362080418,1747980639010,-430.0,0.00016438,2]
[362080419,1747980639019,-430.0,0.00016438,2]
[362080420,1747980639028,-430.0,0.00016438,2]
[362080421,1747980639038,-430.0,0.00016438,2]
[362080422,1747980639047,-450.28858412,0.00016438,2]
[362080423,1747980639057,-430.0,0.00016438,2]
[362080424,1747980639067,-430.0,0.00016438,2]
[362080425,1747980639076,-430.0,0.00016438,2]
[362080426,1747980639085,-430.0,0.00016438,2]
[362080427,1747980639095,-430.0,0.00016438,2]
[362080428,1747980639105,-430.0,0.00016438,2]
[362080429,1747980639114,-430.0,0.00016438,2]
[362080430,1747980639124,-430.0,0.00016438,2]
[362080431,1747980639134,-430.0,0.00016438,2]
[362080432,1747980639143,-445.36563044,0.00016438,2]
[362080433,1747980639152,-430.0,0.00016438,2]
[362080434,1747980639162,-430.0,0.00016438,2]
[362080435,1747980639172,-430.0,0.00016438,2]
[362080436,1747980639182,-430.0,0.00016438,2]
[362080437,1747980639192,-430.0,0.00016438,2]
[362080438,1747980639201,-430.0,0.00016438,2]
[362080439,1747980639211,-430.0,0.00016438,2]
[362080440,1747980639221,-430.0,0.00016438,2]
[362080442,1747980639230,-430.0,0.00016438,2]
[362080443,1747980639241,-430.0,0.00016438,2]
[362080444,1747980639250,-430.0,0.00016438,2]
[362080445,1747980639259,-430.0,0.00016438,2]
[362080446,1747980639269,-430.0,0.00016438,2]
[362080447,1747980639278,-430.0,0.00016438,2]
[362080448,1747980639287,-430.0,0.00016438,2]
[362080449,1747980639297,-430.0,0.00016438,2]
[362080450,1747980639307,-430.0,0.00016438,2]
[362080451,1747980639316,-430.0,0.00016438,2]
[362080452,1747980639326,-430.0,0.00016438,2]
[362080453,1747980639336,-430.0,0.00016438,2]
[362080454,1747980639345,-430.0,0.00016438,2]
[362080455,1747980639356,-430.0,0.00016438,2]
[362080457,1747980639367,-430.0,0.00016438,2]
[362080458,1747980639376,-288.35921725,0.00016438,2]
[362080459,1747980639386,-430.0,0.00016438,2]
[362080460,1747980639397,-430.0,0.00016438,2]
[362080461,1747980639410,-430.0,0.00016438,2]
[362080462,1747980639420,-430.0,0.00016438,2]
[362080463,1747980639430,-430.0,0.00016438,2]
[362080464,1747980639441,-430.0,0.00016438,2]
[362080465,1747980639453,-430.0,0.00016438,2]
[362080466,1747980639463,-379.53770309,0.00016438,2]
[362080467,1747980639472,-430.0,0.00016438,2]
[362080468,1747980639482,-430.0,0.00016438,2]
[362080469,1747980639492,-430.0,0.00016438,2]
[362080470,1747980639502,-430.0,0.00016438,2]
[362080471,1747980639511,-444.63588435,0.00016438,2]
[362080472,1747980639520,-430.0,0.00016438,2]
[362080473,1747980639530,-409.73460885,0.00016438,2]
[362080474,1747980639540,-661.7,0.00016438,2]
[362080475,1747980639549,-430.0,0.00016438,2]
[362080476,1747980639559,-430.0,0.00016438,2]
[362080477,1747980639568,-430.0,0.00016438,2]
[362080478,1747980639577,-430.0,0.00016438,2]
[362080479,1747980639587,-430.0,0.00016438,2]
[362080480,1747980639596,-430.0,0.00016438,2]
[362080481,1747980639606,-578.54,0.00016438,2]
[362080482,1747980639615,-430.0,0.00016438,2]
[362080483,1747980639625,-430.0,0.00016438,2]
[362080484,1747980639634,-430.0,0.00016438,2]
[362080485,1747980639644,-430.0,0.00016438,2]
[362080486,1747980639654,-430.0,0.00016438,2]
[362080487,1747980639663,-430.0,0.00016438,2]
[362080488,1747980639673,-430.0,0.00016438,2]
[362080489,1747980639682,-430.0,0.00016438,2]
[362080490,1747980639692,-430.0,0.00016438,2]
[362080491,1747980639701,-430.0,0.00016438,2]
[362080492,1747980639710,-430.0,0.00016438,2]
[362080493,1747980639720,-259.18,0.00016438,2]
[362080494,1747980639729,-430.0,0.00016438,2]
[362080495,1747980639739,-430.0,0.00016438,2]
[362080496,1747980639748,-430.0,0.00016438,2]
[362080497,1747980639757,-430.0,0.00016438,2]
[362080498,1747980639767,-430.0,0.00016438,2]
[362080499,1747980639777,-444.37,0.00016438,2]
[362080500,1747980639786,-395.84124714,0.00016438,2]
[362080501,1747980639795,-430.0,0.00016438,2]
[362080502,1747980639805,-1172.82756003,0.00016502,2]
[362080503,1747980639815,-430.0,0.00016712,2]
[362080504,1747980639825,-430.0,0.00016712,2]
[362080505,1747980639835,-500.0,0.00016712,2]
[362080506,1747980639845,-455.26542395,0.00016712,2]
[362080507,1747980639854,-430.0,0.00016712,2]
[362080508,1747980639863,-430.0,0.00016712,2]
[362080509,1747980639873,-195.20130231,0.00016712,2]
[362080510,1747980639883,-430.0,0.00016712,2]
[362080511,1747980639892,-361.36803118,0.00016712,2]
[362080512,1747980639906,-68.63196882,0.00016712,2]
[362080513,1747980639916,-430.0,0.00016712,2]
[362080514,1747980639925,-430.0,0.00016712,2]
[362080515,1747980639935,-430.0,0.00016712,2]
[362080516,1747980639945,-430.0,0.00016712,2]
[362080517,1747980639955,-430.0,0.00016712,2]
[362080518,1747980639965,-430.0,0.00016712,2]
[362080519,1747980639974,-430.0,0.00016712,2]
[362080520,1747980639984,-430.0,0.00016712,2]
[362080521,1747980639993,-430.0,0.00016712,2]
[362080523,1747980640003,-430.0,0.00016712,2]
[362080525,1747980640012,-430.0,0.00016712,2]
[362080527,1747980640021,-430.0,0.00016712,2]
[362080528,1747980640030,-430.0,0.00016712,2]
[362080530,1747980640040,-430.0,0.00016712,2]
[362080531,1747980640050,-430.0,0.00016712,2]
[362080532,1747980640059,-430.0,0.00016712,2]
[362080533,1747980640068,-430.0,0.00016712,2]
[362080534,1747980640079,-430.0,0.00016712,2]
[362080535,1747980640089,-430.0,0.00016712,2]
[362080536,1747980640098,-430.0,0.00016712,2]
[362080537,1747980640107,-430.0,0.00016712,2]
[362080538,1747980640116,-430.0,0.00016712,2]
[362080539,1747980640126,-430.0,0.00016712,2]
[362080540,1747980640135,-430.0,0.00016712,2]
[362080541,1747980640144,-430.0,0.00016712,2]
[362080542,1747980640153,-430.0,0.00016712,2]
[362080543,1747980640162,-430.0,0.00016712,2]
[362080544,1747980640172,-430.0,0.00016712,2]
[362080545,1747980640182,-430.0,0.00016712,2]
[362080546,1747980640192,-430.0,0.00016712,2]
[362080547,1747980640202,-430.0,0.00016712,2]
[362080548,1747980640211,-430.0,0.00016712,2]
[362080549,1747980640220,-430.0,0.00016712,2]
[362080550,1747980640230,-430.0,0.00016712,2]
[362080551,1747980640240,-430.0,0.00016712,2]
[362080552,1747980640249,-307.57904775,0.00016712,2]
[362080553,1747980640258,-661.7,0.00016712,2]
[362080554,1747980640268,-430.0,0.00016712,2]
[362080555,1747980640277,-430.0,0.00016712,2]
[362080556,1747980640287,-430.0,0.00016712,2]
[362080557,1747980640296,-430.0,0.00016712,2]
[362080558,1747980640306,-430.0,0.00016712,2]
[362080559,1747980640316,-578.54,0.00016712,2]
[362080560,1747980640326,-430.0,0.00016712,2]
[362080561,1747980640335,-430.0,0.00016712,2]
[362080562,1747980640344,-430.0,0.00016712,2]
[362080563,1747980640354,-430.0,0.00016712,2]
[362080564,1747980640363,-430.0,0.00016712,2]
[362080565,1747980640372,-430.0,0.00016712,2]
[362080566,1747980640381,-430.0,0.00016712,2]
[362080567,1747980640391,-430.0,0.00016712,2]
[362080568,1747980640402,-430.0,0.00016712,2]
[362080569,1747980640412,-430.0,0.00016712,2]
[362080570,1747980640421,-430.0,0.00016712,2]
[362080571,1747980640430,-430.0,0.00016712,2]
[362080572,1747980640440,-430.0,0.00016712,2]
[362080573,1747980640450,-430.0,0.00016712,2]
[362080574,1747980640459,-430.0,0.00016712,2]
[362080575,1747980640469,-430.0,0.00016712,2]
[362080576,1747980640478,-444.37,0.00016712,2]
[362080577,1747980640489,-430.0,0.00016712,2]
[362080578,1747980640499,-500.0,0.00016985,2]
[362080579,1747980640508,-519.64300721,0.00016985,2]
[362080580,1747980640518,-500.0,0.00016985,2]
[362080581,1747980640528,-430.0,0.00016986,2]
[362080582,1747980640537,-430.0,0.00016986,2]
[362080583,1747980640547,-430.0,0.00016986,2]
[362080584,1747980640557,-430.0,0.00016986,2]
[362080585,1747980640566,-430.0,0.00016986,2]
[362080586,1747980640576,-430.0,0.00016986,2]
[362080587,1747980640585,-430.0,0.00016986,2]
[362080588,1747980640594,-430.0,0.00016986,2]
[362080589,1747980640604,-430.0,0.00016986,2]
[362080590,1747980640613,-430.0,0.00016986,2]
[362080591,1747980640624,-425.01,0.00016986,2]
[362080592,1747980640633,-430.0,0.00016986,2]
[362080593,1747980640643,-430.0,0.00016986,2]
[362080594,1747980640652,-430.0,0.00016986,2]
[362080595,1747980640662,-430.0,0.00016986,2]
[362080596,1747980640672,-430.0,0.00016986,2]
[362080597,1747980640682,-430.0,0.00016986,2]
[362080598,1747980640691,-430.0,0.00016986,2]
[362080599,1747980640701,-179.29771237,0.00016986,2]
[362080600,1747980640711,-430.0,0.00016986,2]
[362080601,1747980640721,-430.0,0.00016986,2]
[362080602,1747980640731,-430.0,0.00016986,2]
[362080603,1747980640740,-430.0,0.00016986,2]
[362080604,1747980640750,-430.0,0.00016986,2]
[362080605,1747980640760,-430.0,0.00016986,2]
[362080606,1747980640769,-430.0,0.00016986,2]
[362080607,1747980640780,-430.0,0.00016986,2]
[362080608,1747980640790,-430.0,0.00016986,2]
[362080609,1747980640800,-430.0,0.00016986,2]
[362080610,1747980640810,-376.90705102,0.00016986,2]
[362080611,1747980640824,-53.09294898,0.00016986,2]